bitfinex-derivatives/quotes_BNBF0:USTF0_20250220
["timestamp","ask_amount","ask_price","bid_price","bid_amount"]
[1740076595693,2.19507284,652.86,651.75,0.30686612]
[1740076595893,1.561,652.85,651.75,0.30686612]
[1740076596593,3.07458246,652.84,651.94,1.13018886]
[1740076596794,3.07460243,652.83,651.94,1.13018886]
[1740076596997,1.561,652.85,651.94,1.13018886]
[1740076597200,3.07458181,652.84,651.94,1.13018886]
[1740076597401,2.19507284,652.82,651.94,1.13018886]
[1740076598002,3.07514607,652.81,651.94,1.13018886]
[1740076598196,2.19507284,652.82,651.94,1.13018886]
[1740076598401,3.07523242,652.81,651.94,1.13018886]
[1740076598601,3.07523242,652.8,651.94,1.13018886]
[1740076598901,2.19507284,652.79,651.94,1.13018886]
[1740076599704,2.19507284,652.79,652.14,1.13018886]
[1740076599897,3.07637548,652.78,652.14,1.13018886]
[1740076600100,3.07637955,652.77,652.14,1.13018886]
[1740076600297,3.07637955,652.76,652.14,1.13018886]
[1740076600500,3.07637955,652.75,652.14,1.13018886]
[1740076600701,3.07637955,652.74,652.14,1.13018886]
[1740076600898,3.07637955,652.73,652.14,1.13018886]
[1740076601199,2.19507284,652.75,652.14,1.13018886]
[1740076602203,1.561,652.85,652.14,1.13018886]
[1740076602404,1.561,652.85,652.34,1.13018886]
[1740076602603,2.19816031,652.84,652.34,1.13018886]
[1740076603505,1.561,652.85,652.34,1.13018886]
[1740076605107,1.561,652.85,651.92,1.13018886]
[1740076605407,1.561,652.85,651.93,0.3067814]
[1740076608207,1.561,652.85,652.0,1.13018886]
[1740076608409,1.561,652.85,652.0,1.43693732]
[1740076608609,1.561,652.85,652.01,0.30674376]
[1740076611111,1.561,652.85,652.43,1.13018886]
[1740076611508,0.642,652.98,652.43,1.13018886]
[1740076611709,3.08690163,652.97,652.43,1.13018886]
[1740076612008,3.08690163,652.96,652.43,1.13018886]
[1740076612206,3.08690163,652.95,652.43,1.13018886]
[1740076612412,3.08690163,652.94,652.43,1.13018886]
[1740076612617,3.08690163,652.93,652.43,1.13018886]
[1740076612806,3.08690163,652.92,652.43,1.13018886]
[1740076613005,3.08690163,652.91,652.43,1.13018886]
[1740076613205,3.08690163,652.9,652.43,1.13018886]
[1740076613410,3.08690163,652.89,652.43,1.13018886]
[1740076613613,3.08690163,652.88,652.43,1.13018886]
[1740076613912,0.642,652.98,652.43,1.13018886]
[1740076614112,3.08935463,652.97,652.43,1.13018886]
[1740076614314,3.08935463,652.96,652.31,1.13018886]
[1740076614513,3.08935463,652.95,652.31,1.13018886]
[1740076614814,3.08935463,652.94,652.31,1.13018886]
[1740076615011,3.08935463,652.93,652.31,1.13018886]
[1740076615313,3.08935463,652.92,652.31,1.13018886]
[1740076615510,3.08935463,652.91,652.31,1.13018886]
[1740076615713,3.08935463,652.9,652.31,1.13018886]
[1740076615913,3.08935463,652.89,652.31,1.13018886]
[1740076616111,3.08935463,652.88,652.31,1.13018886]
[1740076616305,3.08935463,652.87,652.31,1.13018886]
[1740076616511,3.08935463,652.86,652.31,1.13018886]
[1740076616712,3.08935463,652.85,652.31,1.13018886]
[1740076616913,3.08935463,652.84,652.31,1.13018886]
[1740076617113,3.08935463,652.83,652.31,1.13018886]
[1740076617313,3.08935463,652.82,652.31,1.13018886]
[1740076617514,3.08935463,652.81,652.31,1.13018886]
[1740076617814,3.08935463,652.8,652.31,1.13018886]
[1740076618015,2.20651744,652.86,652.31,1.13018886]
[1740076618016,3.08935463,652.79,652.31,1.13018886]
[1740076618207,3.0954126,652.78,652.31,1.13018886]
[1740076618409,3.0954126,652.77,652.31,1.13018886]
[1740076618615,3.0954126,652.76,652.31,1.13018886]
[1740076618914,3.0954126,652.75,652.31,1.13018886]
[1740076619114,3.0954126,652.74,652.31,1.13018886]
[1740076619317,3.0954126,652.73,652.31,1.13018886]
[1740076619513,3.0954126,652.72,652.31,1.13018886]
[1740076619708,2.20651744,652.79,652.3,1.13018886]
[1740076619915,3.09752871,652.78,652.3,1.13018886]
[1740076620110,3.09752871,652.77,652.3,1.13018886]
[1740076620315,3.09752871,652.76,652.3,1.13018886]
[1740076620510,3.09752871,652.75,652.3,1.13018886]
[1740076620716,3.09752871,652.74,652.3,1.13018886]
[1740076621017,3.09752871,652.73,652.3,1.13018886]
[1740076621216,3.09752871,652.72,652.3,1.13018886]
[1740076621417,3.09752871,652.71,652.3,1.13018886]
[1740076621618,3.09864178,652.7,652.3,1.13018886]
[1740076621818,2.20651744,652.78,652.3,1.13018886]
[1740076622117,3.09877183,652.77,652.3,1.13018886]
[1740076622318,3.09877183,652.76,652.4,1.13018886]
[1740076622518,3.09877183,652.75,652.4,1.13018886]
[1740076622721,3.09877183,652.74,652.4,1.13018886]
[1740076622921,3.09877183,652.73,652.4,1.13018886]
[1740076623220,2.20651744,652.77,652.4,1.13018886]
[1740076623422,3.10117498,652.76,652.4,1.13018886]
[1740076623621,2.20651744,652.77,652.4,1.13018886]
[1740076623622,3.10117498,652.75,652.4,1.13018886]
[1740076623814,3.10117498,652.74,652.4,1.13018886]
[1740076624019,3.10117498,652.73,652.4,1.13018886]
[1740076624215,2.20651744,652.74,652.4,1.13018886]
[1740076624823,0.642,652.98,652.4,1.13018886]
[1740076625018,3.10250653,652.97,652.49,1.13018886]
[1740076625225,3.10250653,652.96,652.49,1.13018886]
[1740076625423,3.10250653,652.95,652.49,1.13018886]
[1740076625724,3.10250653,652.94,652.49,1.13018886]
[1740076625924,3.10250653,652.93,652.49,1.13018886]
[1740076626125,3.10250653,652.92,652.49,1.13018886]
[1740076626325,3.10250653,652.91,652.49,1.13018886]
[1740076626529,5.31836529,652.9,652.49,1.13018886]
[1740076626729,2.21585876,652.9,652.49,1.13018886]
[1740076627823,2.21585876,652.9,652.02,0.83726452]
[1740076627824,2.21585876,652.9,652.53,1.13018886]
[1740076628229,0.642,652.98,652.53,1.13018886]
[1740076628430,3.10327706,652.97,652.53,1.13018886]
[1740076628626,3.10327706,652.96,652.53,1.13018886]
[1740076628825,2.21594554,652.95,652.53,1.13018886]
[1740076630730,2.21594554,652.95,652.11,1.35561307]
[1740076630731,1.874,653.18,652.69,1.13018886]
[1740076630925,3.10174489,653.17,652.69,1.13018886]
[1740076631130,3.10174489,653.16,652.69,1.13018886]
[1740076631326,3.10174489,653.15,652.69,1.13018886]
[1740076631524,3.10174489,653.14,652.69,1.13018886]
[1740076631725,3.10174489,653.13,652.69,1.13018886]
[1740076631928,3.10174489,653.12,652.69,1.13018886]
[1740076632131,3.10174489,653.11,652.69,1.13018886]
[1740076632430,2.21504456,653.16,652.69,1.13018886]
[1740076632631,3.10077653,653.15,652.69,1.13018886]
[1740076632826,3.10077653,653.14,652.69,1.13018886]
[1740076633032,2.21504456,653.16,652.69,1.13018886]
[1740076633225,2.21504456,653.14,652.69,1.13018886]
[1740076633525,2.21504456,653.14,652.51,1.13018886]
[1740076634430,1.768,653.19,652.51,1.13018886]
[1740076636131,2.21107036,653.18,652.51,1.13018886]
[1740076637035,2.21107036,653.18,652.49,1.13018886]
[1740076637429,1.768,653.19,652.49,1.13018886]
[1740076640136,1.768,653.19,652.25,1.12967756]
[1740076640137,1.768,653.19,652.42,1.13018886]
[1740076642836,1.768,653.19,652.38,1.13018886]
[1740076643039,1.485,653.33,652.38,1.13018886]
[1740076643235,3.08978855,653.32,652.38,1.13018886]
[1740076643440,3.08978855,653.31,652.38,1.13018886]
[1740076643639,3.08978855,653.3,652.38,1.13018886]
[1740076643836,3.08978855,653.29,652.38,1.13018886]
[1740076644039,3.08978855,653.28,652.39,0.30656509]
[1740076644239,3.08978855,653.27,652.39,0.30656509]
[1740076644441,3.08978855,653.26,652.39,0.30656509]
[1740076644640,3.08978855,653.25,652.39,0.30656509]
[1740076644842,3.08978855,653.24,652.39,0.30656509]
[1740076645041,2.20604975,653.3,652.39,0.30656509]
[1740076645042,3.08978855,653.23,652.39,0.30656509]
[1740076645238,3.08978855,653.22,652.39,0.30656509]
[1740076645442,2.20604975,653.3,652.39,0.30656509]
[1740076645643,3.0885295,653.29,652.39,0.30656509]
[1740076645944,3.0885295,653.28,652.39,0.30656509]
[1740076646137,3.0885295,653.27,652.39,0.30656509]
[1740076646342,2.20529979,653.27,652.39,0.30656509]
[1740076648044,2.20529979,653.27,652.72,1.13018886]
[1740076648439,1.485,653.33,652.72,1.13018886]
[1740076649146,2.20430059,653.32,652.72,1.13018886]
[1740076649545,3.08738906,653.31,652.72,1.13018886]
[1740076649743,2.20430059,653.32,652.72,1.13018886]
[1740076650547,2.20430059,653.31,652.72,1.13018886]
[1740076650944,2.20430059,653.31,652.56,1.13018886]
[1740076652241,5.29211516,653.3,652.56,1.13018886]
[1740076652446,3.08781457,653.29,652.56,1.13018886]
[1740076652646,3.08781457,653.28,652.56,1.13018886]
[1740076652848,3.08781457,653.27,652.56,1.13018886]
[1740076653043,3.08781457,653.26,652.56,1.13018886]
[1740076653243,3.08781457,653.25,652.56,1.13018886]
[1740076653447,3.08781457,653.24,652.56,1.13018886]
[1740076653645,3.08781457,653.23,652.56,1.13018886]
[1740076653848,1.485,653.33,652.56,1.13018886]
[1740076654449,5.2942821,653.32,652.54,1.13018886]
[1740076654648,3.08864999,653.31,652.54,1.13018886]
[1740076654849,3.08864999,653.3,652.54,1.13018886]
[1740076655052,2.20563211,653.32,652.54,1.13018886]
[1740076655252,3.08884055,653.31,652.54,1.13018886]
[1740076655553,2.20563211,653.32,652.54,1.13018886]
[1740076655753,2.20563211,653.3,652.54,1.13018886]
[1740076657853,1.485,653.33,652.39,0.30656509]
[1740076657854,2.20563211,653.29,652.39,0.30656509]
[1740076658752,1.807,653.28,652.39,0.30656509]
[1740076660157,2.20796174,653.27,652.39,0.30656509]
[1740076660755,3.0922208,653.26,652.39,0.30656509]
[1740076660950,3.0922208,653.25,652.39,0.30656509]
[1740076661256,3.0922208,653.24,652.39,0.30656509]
[1740076661456,3.0922208,653.23,652.39,0.30656509]
[1740076661652,3.0922208,653.22,652.39,0.30656509]
[1740076661853,3.0922208,653.21,652.39,0.30656509]
[1740076662050,3.0922208,653.2,652.39,0.30656509]
[1740076662349,2.20796174,653.24,652.39,0.30656509]
[1740076662554,3.09321263,653.23,652.39,0.30656509]
[1740076662755,3.09321263,653.22,652.39,0.30656509]
[1740076662951,3.09321263,653.21,652.39,0.30656509]
[1740076663254,3.09321263,653.2,652.39,0.30656509]
[1740076663455,3.09321263,653.19,652.39,0.30656509]
[1740076663656,3.09321263,653.18,652.39,0.30656509]
[1740076663856,3.09321263,653.17,652.39,0.30656509]
[1740076664156,3.09321263,653.16,652.39,0.30656509]
[1740076664351,2.20796174,653.2,652.39,0.30656509]
[1740076664550,3.09358053,653.19,652.39,0.30656509]
[1740076664750,3.09358053,653.18,652.39,0.30656509]
[1740076664954,3.09358053,653.17,652.39,0.30656509]
[1740076665158,3.09358053,653.16,652.39,0.30656509]
[1740076665452,3.09341302,653.15,652.39,0.30656509]
[1740076665657,3.09341302,653.14,652.39,0.30656509]
[1740076665856,3.09341302,653.13,652.39,0.30656509]
[1740076666058,3.09341302,653.12,652.39,0.30656509]
[1740076666259,3.09341302,653.11,652.39,0.30656509]
[1740076666452,3.09341302,653.1,652.39,0.30656509]
[1740076666656,3.09341302,653.09,652.39,0.30656509]
[1740076666856,3.09341302,653.08,652.39,0.30656509]
[1740076667158,2.20796174,653.12,652.39,0.30656509]
[1740076667159,3.09341302,653.07,652.39,0.30656509]
[1740076667359,3.09341302,653.06,652.39,0.30656509]
[1740076667558,3.09341302,653.05,652.39,0.30656509]
[1740076667756,3.09341302,653.04,652.39,0.30656509]
[1740076667962,3.09341302,653.03,652.39,0.30656509]
[1740076668259,3.09341302,653.02,652.39,0.30656509]
[1740076668559,3.09341302,653.01,652.39,0.30656509]
[1740076668754,3.09341302,653.0,652.39,0.30656509]
[1740076668959,2.20796174,653.01,652.39,0.30656509]
[1740076669155,3.09390781,653.0,652.39,0.30656509]
[1740076669363,3.09370476,652.99,652.39,0.30656509]
[1740076669556,3.09370476,652.98,652.39,0.30656509]
[1740076669756,2.20796174,653.01,652.39,0.30656509]
[1740076669959,3.09396872,653.0,652.39,0.30656509]
[1740076670157,3.09396872,652.99,652.39,0.30656509]
[1740076670359,3.09396872,652.98,652.39,0.30656509]
[1740076670557,2.20796174,652.98,652.39,0.30656509]
[1740076670760,3.09408013,652.97,652.39,0.30656509]
[1740076670961,2.20796174,652.98,652.39,0.30656509]
[1740076671263,3.09410225,652.97,652.39,0.30656509]
[1740076671464,2.20796174,652.98,652.39,0.30656509]
[1740076671857,3.09425473,652.97,652.39,0.30656509]
[1740076672062,2.20796174,652.98,652.58,1.13018886]
[1740076672257,3.09424799,652.97,652.58,1.13018886]
[1740076672462,2.20796174,652.97,652.58,1.13018886]
[1740076674365,1.819,653.26,652.58,1.13018886]
[1740076674560,3.09452615,653.25,652.58,1.13018886]
[1740076674865,3.09452615,653.24,652.58,1.13018886]
[1740076675068,3.09452615,653.23,652.57,1.13018886]
[1740076675265,3.09452615,653.22,652.57,1.13018886]
[1740076675464,3.09452615,653.21,652.57,1.13018886]
[1740076675665,3.09471297,653.2,652.57,1.13018886]
[1740076675965,3.09461654,653.19,652.57,1.13018886]
[1740076676158,3.09461654,653.18,652.57,1.13018886]
[1740076676362,2.20994173,653.23,652.57,1.13018886]
[1740076676765,2.20994173,653.22,652.57,1.13018886]
[1740076677665,2.20994173,653.22,652.48,1.13018886]
[1740076678365,2.20994173,653.21,652.48,1.13018886]
[1740076680065,2.20994173,653.2,652.48,1.13018886]
[1740076680462,2.20994173,653.2,652.39,0.30656509]
[1740076681665,5.30755493,653.19,652.39,0.30656509]
[1740076681866,2.20994173,653.19,652.39,0.30656509]
[1740076683564,5.30933972,653.18,652.39,0.30656509]
[1740076683761,3.09939799,653.17,652.39,0.30656509]
[1740076683959,3.09948719,653.16,652.39,0.30656509]
[1740076684160,2.20994173,653.18,652.39,0.30656509]
[1740076684961,2.20994173,653.17,652.39,0.30656509]
[1740076685569,2.20994173,653.17,652.54,1.13018886]
[1740076686266,3.10108807,653.16,652.54,1.13018886]
[1740076686462,3.10108807,653.15,652.54,1.13018886]
[1740076686667,3.10108807,653.14,652.54,1.13018886]
[1740076686962,3.10108807,653.13,652.54,1.13018886]
[1740076687169,3.10108807,653.12,652.54,1.13018886]
[1740076687369,3.10108807,653.11,652.54,1.13018886]
[1740076687563,3.10108807,653.1,652.54,1.13018886]
[1740076687763,3.10108807,653.09,652.54,1.13018886]
[1740076687962,3.10108807,653.08,652.54,1.13018886]
[1740076688162,3.10108807,653.07,652.62,1.13018886]
[1740076688368,3.10108807,653.06,652.62,1.13018886]
[1740076688569,3.10108807,653.05,652.62,1.13018886]
[1740076688868,3.10108807,653.04,652.62,1.13018886]
[1740076689066,2.20994173,653.06,652.62,1.13018886]
[1740076689067,3.10108807,653.03,652.62,1.13018886]
[1740076689267,3.10108807,653.02,652.62,1.13018886]
[1740076689467,3.10108807,653.01,652.62,1.13018886]
[1740076689769,3.10108807,653.0,652.62,1.13018886]
[1740076689966,3.10108807,652.99,652.62,1.13018886]
[1740076690166,3.10108807,652.98,652.62,1.13018886]
[1740076690369,3.10108807,652.97,652.62,1.13018886]
[1740076690570,3.10108807,652.96,652.62,1.13018886]
[1740076690771,2.20994173,652.98,652.62,1.13018886]
[1740076690973,3.1013381,652.97,652.73,1.13018886]
[1740076691272,2.20994173,652.98,652.73,1.13018886]
[1740076691570,3.10134365,652.97,652.73,1.13018886]
[1740076691768,2.20994173,652.98,652.73,1.13018886]
[1740076691968,3.10131263,652.97,652.73,1.13018886]
[1740076692170,2.20994173,652.98,652.73,1.13018886]
[1740076692567,1.58,653.31,652.73,1.13018886]
[1740076692771,3.10111909,653.3,652.73,1.13018886]
[1740076693073,5.31562038,653.29,652.73,1.13018886]
[1740076693273,3.10111909,653.28,652.73,1.13018886]
[1740076693574,3.10111909,653.27,652.73,1.13018886]
[1740076693768,3.10111909,653.26,652.73,1.13018886]
[1740076693974,3.10111909,653.25,652.73,1.13018886]
[1740076694175,2.21450129,653.27,652.6,1.13018886]
[1740076694176,3.10111909,653.24,652.6,1.13018886]
[1740076694368,3.10111909,653.23,652.6,1.13018886]
[1740076694573,3.10111909,653.22,652.6,1.13018886]
[1740076694775,2.21450129,653.27,652.6,1.13018886]
[1740076694776,3.10111909,653.21,652.6,1.13018886]
[1740076694973,3.10111909,653.2,652.6,1.13018886]
[1740076695169,3.10111909,653.19,652.6,1.13018886]
[1740076695369,3.10111909,653.18,652.6,1.13018886]
[1740076695570,2.21450129,653.22,652.6,1.13018886]
[1740076695769,3.10051894,653.21,652.6,1.13018886]
[1740076695969,2.21450129,653.22,652.6,1.13018886]
[1740076696675,0.64,653.41,652.6,1.13018886]
[1740076696875,3.10004952,653.4,652.72,1.13018886]
[1740076697069,3.10004952,653.39,652.72,1.13018886]
[1740076697273,3.10004952,653.38,652.72,1.13018886]
[1740076697479,3.10004952,653.37,652.72,1.13018886]
[1740076697672,3.10004952,653.36,652.72,1.13018886]
[1740076697873,3.10004952,653.35,652.72,1.13018886]
[1740076698179,3.10004952,653.34,652.72,1.13018886]
[1740076698478,3.10004952,653.33,652.72,1.13018886]
[1740076698680,3.10004952,653.32,652.72,1.13018886]
[1740076698876,3.10004952,653.31,652.72,1.13018886]
[1740076699080,3.10004952,653.3,652.72,1.13018886]
[1740076699380,3.10004952,653.29,652.72,1.13018886]
[1740076699579,3.10004952,653.28,652.72,1.13018886]
[1740076699779,2.21345914,653.3,652.65,1.13018886]
[1740076699979,3.09907605,653.29,652.65,1.13018886]
[1740076700173,2.21345914,653.3,652.65,1.13018886]
[1740076700377,3.0986042,653.29,652.65,1.13018886]
[1740076700675,2.21345914,653.3,652.65,1.13018886]
[1740076701580,0.64,653.41,652.65,1.13018886]
[1740076701778,3.09820529,653.4,652.65,1.13018886]
[1740076701976,5.31035794,653.39,652.65,1.13018886]
[1740076702175,3.09820529,653.38,652.65,1.13018886]
[1740076702380,3.09820529,653.37,652.65,1.13018886]
[1740076702582,3.09820529,653.36,652.74,1.13018886]
[1740076702779,3.09820529,653.35,652.74,1.13018886]
[1740076702978,3.09820529,653.34,652.74,1.13018886]
[1740076703178,3.09820529,653.33,652.74,1.13018886]
[1740076703381,3.09820529,653.32,652.74,1.13018886]
[1740076703677,2.21215265,653.39,652.74,1.13018886]
[1740076703880,3.0973689,653.38,652.74,1.13018886]
[1740076704081,3.0973689,653.37,652.74,1.13018886]
[1740076704282,3.0973689,653.36,652.74,1.13018886]
[1740076704584,3.0973689,653.35,652.74,1.13018886]
[1740076704784,3.0973689,653.34,652.74,1.13018886]
[1740076704977,3.0973689,653.33,652.74,1.13018886]
[1740076705178,3.0973689,653.32,652.74,1.13018886]
[1740076705377,3.0973689,653.31,652.74,1.13018886]
[1740076705580,2.21215265,653.38,652.74,1.13018886]
[1740076705783,3.09676664,653.37,652.74,1.13018886]
[1740076705981,3.09676664,653.36,652.74,1.13018886]
[1740076706283,3.09676664,653.35,652.74,1.13018886]
[1740076706483,2.21215265,653.36,652.74,1.13018886]
[1740076706882,2.21215265,653.36,652.67,1.13018886]
[1740076707882,2.21215265,653.35,652.67,1.13018886]
[1740076709682,1.372,653.53,652.49,1.13018886]
[1740076709883,3.09551228,653.52,652.5,0.3065134]
[1740076710079,3.09551228,653.51,652.5,0.3065134]
[1740076710280,3.09551228,653.5,652.5,0.3065134]
[1740076710478,3.09551228,653.49,652.5,0.3065134]
[1740076710680,3.09551228,653.48,652.5,0.3065134]
[1740076710883,3.09551228,653.47,652.5,0.3065134]
[1740076711080,3.09551228,653.46,652.5,0.3065134]
[1740076711287,2.20982543,653.5,652.5,0.3065134]
[1740076711485,3.09481256,653.49,652.5,0.3065134]
[1740076711683,3.09481256,653.48,652.5,0.3065134]
[1740076711889,3.09481256,653.47,652.5,0.3065134]
[1740076712187,3.09481256,653.46,652.5,0.3065134]
[1740076712382,3.09481256,653.45,652.5,0.3065134]
[1740076712581,3.09481256,653.44,652.5,0.3065134]
[1740076712782,3.09481256,653.43,652.5,0.3065134]
[1740076712986,3.09481256,653.42,652.5,0.3065134]
[1740076713183,2.20982543,653.46,652.5,0.3065134]
[1740076713488,3.09387993,653.45,652.5,0.3065134]
[1740076713685,3.09387993,653.44,652.5,0.3065134]
[1740076713889,3.09387993,653.43,652.5,0.3065134]
[1740076714191,3.09387993,653.42,652.5,0.3065134]
[1740076714388,3.09387993,653.41,652.5,0.3065134]
[1740076714583,3.09387993,653.4,652.5,0.3065134]
[1740076714788,3.09387993,653.39,652.5,0.3065134]
[1740076714989,3.09387993,653.38,652.5,0.3065134]
[1740076715187,2.20982543,653.38,652.5,0.3065134]
[1740076716090,2.20982543,653.38,652.73,1.13018886]
[1740076716482,1.372,653.53,652.73,1.13018886]
[1740076716687,3.09191035,653.52,652.73,1.13018886]
[1740076716887,3.09191035,653.51,652.73,1.13018886]
[1740076717088,3.09191035,653.5,652.73,1.13018886]
[1740076717289,3.09191035,653.49,652.73,1.13018886]
[1740076717589,3.09191035,653.48,652.73,1.13018886]
[1740076717788,3.09191035,653.47,652.73,1.13018886]
[1740076717986,3.09191035,653.46,652.73,1.13018886]
[1740076718187,3.09191035,653.45,652.73,1.13018886]
[1740076718386,3.09191035,653.44,652.73,1.13018886]
[1740076718585,3.09191035,653.43,652.73,1.13018886]
[1740076718787,2.20752001,653.49,652.73,1.13018886]
[1740076718983,3.09091103,653.48,652.73,1.13018886]
[1740076719187,3.09091103,653.47,652.73,1.13018886]
[1740076719388,3.09091103,653.46,652.73,1.13018886]
[1740076719589,3.09091103,653.45,652.73,1.13018886]
[1740076719791,3.09091103,653.44,652.79,1.13018886]
[1740076719991,3.09091103,653.43,652.79,1.13018886]
[1740076720185,3.09091103,653.42,652.79,1.13018886]
[1740076720389,3.09091103,653.41,652.79,1.13018886]
[1740076720590,3.09091103,653.4,652.79,1.13018886]
[1740076720886,5.29843104,653.39,652.79,1.13018886]
[1740076721090,3.09091103,653.38,652.79,1.13018886]
[1740076721389,3.09091103,653.37,652.79,1.13018886]
[1740076721589,2.20752001,653.39,652.79,1.13018886]
[1740076721792,3.09069115,653.38,652.79,1.13018886]
[1740076721990,3.09069115,653.37,652.73,1.13018886]
[1740076722185,3.09069115,653.36,652.73,1.13018886]
[1740076722391,3.09069115,653.35,652.73,1.13018886]
[1740076722589,5.29821116,653.34,652.73,1.13018886]
[1740076722790,3.09069115,653.33,652.73,1.13018886]
[1740076722987,3.09069115,653.32,652.73,1.13018886]
[1740076723194,2.20752001,653.34,652.73,1.13018886]
[1740076723390,3.0909726,653.33,652.73,1.13018886]
[1740076723590,2.20752001,653.34,652.73,1.13018886]
[1740076723891,3.09114401,653.33,652.73,1.13018886]
[1740076724088,3.09118993,653.32,652.73,1.13018886]
[1740076724291,3.09118993,653.31,652.53,1.13018886]
[1740076724491,3.09118993,653.3,652.53,1.13018886]
[1740076724695,2.20752001,653.34,652.53,1.13018886]
[1740076724889,3.09154079,653.33,652.53,1.13018886]
[1740076725092,3.09154079,653.32,652.53,1.13018886]
[1740076725293,3.09154079,653.31,652.53,1.13018886]
[1740076725493,2.20743238,653.32,652.53,1.13018886]
[1740076725887,1.372,653.53,652.53,1.13018886]
[1740076726093,3.09140178,653.52,652.53,1.13018886]
[1740076726391,3.09140178,653.51,652.72,1.13018886]
[1740076726588,3.09140178,653.5,652.72,1.13018886]
[1740076726791,3.09140178,653.49,652.72,1.13018886]
[1740076726993,3.09140178,653.48,652.72,1.13018886]
[1740076727294,3.09140178,653.47,652.72,1.13018886]
[1740076727593,3.09140178,653.46,652.72,1.13018886]
[1740076727793,3.09140178,653.45,652.72,1.13018886]
[1740076727992,3.09140178,653.44,652.72,1.13018886]
[1740076728191,3.09140178,653.43,652.72,1.13018886]
[1740076728393,3.09140178,653.42,652.72,1.13018886]
[1740076728688,3.09140178,653.41,652.72,1.13018886]
[1740076728889,3.09140178,653.4,652.9,1.13018886]
[1740076729094,3.09140178,653.39,652.9,1.13018886]
[1740076729296,3.09140178,653.38,652.9,1.13018886]
[1740076729493,3.09140178,653.37,652.9,1.13018886]
[1740076729698,3.09140178,653.36,652.9,1.13018886]
[1740076729896,3.09140178,653.35,652.9,1.13018886]
[1740076730196,3.09140178,653.34,652.9,1.13018886]
[1740076730396,3.09140178,653.33,652.9,1.13018886]
[1740076730597,3.09140178,653.32,652.9,1.13018886]
[1740076730796,2.20711334,653.32,652.9,1.13018886]
[1740076731001,3.09235273,653.31,652.9,1.13018886]
[1740076731200,2.20711334,653.32,652.9,1.13018886]
[1740076731896,3.09262751,653.31,652.92,1.13018886]
[1740076732099,3.09267541,653.3,652.92,1.13018886]
[1740076732295,2.20711334,653.32,652.92,1.13018886]
[1740076732496,2.20711334,653.3,652.92,1.13018886]
[1740076733801,1.187,653.66,652.92,1.13018886]
[1740076734103,5.30200949,653.65,652.92,1.13018886]
[1740076734306,3.0933227,653.64,652.92,1.13018886]
[1740076734502,3.0933227,653.63,652.92,1.13018886]
[1740076734703,2.20868679,653.65,652.51,2.19019726]
[1740076734704,3.0933227,653.62,652.96,1.13018886]
[1740076734898,3.0933227,653.61,652.96,1.13018886]
[1740076735102,3.0933227,653.6,652.96,1.13018886]
[1740076735300,3.0933227,653.59,652.96,1.13018886]
[1740076735504,3.0933227,653.58,652.96,1.13018886]
[1740076735805,3.0933227,653.57,652.96,1.13018886]
[1740076736007,3.0933227,653.56,652.96,1.13018886]
[1740076736205,5.30200949,653.55,652.96,1.13018886]
[1740076736406,3.0933227,653.54,652.96,1.13018886]
[1740076736706,3.0933227,653.53,652.96,1.13018886]
[1740076736908,3.0933227,653.52,652.96,1.13018886]
[1740076737207,3.0933227,653.51,652.93,1.13018886]
[1740076737407,3.0933227,653.5,652.93,1.13018886]
[1740076737603,2.20868679,653.55,652.93,1.13018886]
[1740076738005,2.20868679,653.54,652.93,1.13018886]
[1740076738508,3.09548934,653.53,652.93,1.13018886]
[1740076738707,3.09548934,653.52,652.93,1.13018886]
[1740076738908,2.20868679,653.54,652.93,1.13018886]
[1740076739509,2.20868679,653.53,652.93,1.13018886]
[1740076739910,2.20868679,653.53,652.82,1.13018886]
[1740076741510,2.20868679,653.52,652.82,1.13018886]
[1740076742513,2.20868679,653.52,652.8,1.13018886]
[1740076742713,2.20868679,653.51,652.8,1.13018886]
[1740076744312,2.20868679,653.5,652.8,1.13018886]
[1740076745312,2.20868679,653.5,652.78,1.13018886]
[1740076745510,3.09948376,653.49,652.78,1.13018886]
[1740076745713,5.30817055,653.48,652.78,1.13018886]
[1740076745912,3.09948376,653.47,652.78,1.13018886]
[1740076746108,3.09948376,653.46,652.78,1.13018886]
[1740076746307,3.09948376,653.45,652.78,1.13018886]
[1740076746513,3.09948376,653.44,652.78,1.13018886]
[1740076746813,3.09948376,653.43,652.78,1.13018886]
[1740076747015,3.09948376,653.42,652.78,1.13018886]
[1740076747213,3.09948376,653.41,652.78,1.13018886]
[1740076747414,3.09948376,653.4,652.78,1.13018886]
[1740076747713,3.09948376,653.39,652.78,1.13018886]
[1740076748015,3.09948376,653.38,652.78,1.13018886]
[1740076748217,3.09948376,653.37,652.78,1.13018886]
[1740076748413,3.09948376,653.36,652.78,1.13018886]
[1740076748714,3.09948376,653.35,652.78,1.13018886]
[1740076749016,3.09948376,653.34,652.47,1.13018886]
[1740076749211,3.09948376,653.33,652.47,1.13018886]
[1740076749408,3.09948376,653.32,652.47,1.13018886]
[1740076749715,3.09948376,653.31,652.47,1.13018886]
[1740076749911,3.09948376,653.3,652.47,1.13018886]
[1740076750112,3.09948376,653.29,652.47,1.13018886]
[1740076750413,3.09948376,653.28,652.47,1.13018886]
[1740076750614,3.09948376,653.27,652.47,1.13018886]